bitfinex/quotes_ETHUSD_20241018
["timestamp","ask_amount","ask_price","bid_price","bid_amount"]
[1729258623210,11.97885,2617.4,2616.8,0.8284]
[1729258623391,3.82096,2617.2,2616.8,0.8284]
[1729258623908,7.64191,2617.2,2616.8,0.8284]
[1729258624212,3.82102,2617.1,2616.8,0.8284]
[1729258624581,4.62885,2617.4,2616.8,4.6498]
[1729258624783,3.82034,2617.6,2617.1,0.8054]
[1729258625123,3.82039,2617.6,2617.1,4.62635]
[1729258625343,0.7908,2617.9,2617.1,4.62635]
[1729258625344,3.82045,2617.5,2617.1,4.62635]
[1729258625619,3.82062,2617.4,2617.1,0.8054]
[1729258626921,3.8208,2617.3,2617.1,0.8054]
[1729258627221,3.82062,2617.4,2617.1,0.8054]
[1729258627422,3.82052,2617.5,2617.1,0.8054]
[1729258627740,3.82059,2617.4,2617.1,0.8054]
[1729258629311,4.62345411,2617.8,2617.1,0.8054]
[1729258629312,3.82045,2617.5,2617.1,4.62639]
[1729258629606,3.82045,2617.5,2617.1,0.8054]
[1729258629607,3.82062,2617.4,2617.1,0.8054]
[1729258631853,3.82052,2617.5,2617.1,0.8054]
[1729258632056,4.584609,2617.5,2617.1,0.8054]
[1729258632271,3.82037,2617.6,2617.1,4.62634]
[1729258632560,7.64076,2617.6,2617.1,4.62634]
[1729258633113,7.64079,2617.6,2617.1,4.62634]
[1729258633313,3.82045,2617.5,2617.1,4.62634]
[1729258633714,0.80345411,2617.8,2617.2,3.82081]
[1729258633913,3.81998,2617.9,2617.2,3.82081]
[1729258634119,3.81998,2617.9,2617.3,3.82061]
[1729258634352,3.82009,2617.8,2617.3,3.82061]
[1729258635025,3.82016,2617.7,2617.3,3.82061]
[1729258636427,7.64023,2617.8,2617.3,3.82061]
[1729258636631,3.82014,2617.7,2617.3,3.82061]
[1729258639531,3.81982,2618.0,2617.5,3.82035]
[1729258639744,3.81933,2618.3,2617.9,3.81985]
[1729258639933,3.81933,2618.3,2617.6,0.7885]
[1729258639934,3.81908,2618.5,2618.0,3.81963]
[1729258640134,3.81908,2618.5,2618.1,0.7885]
[1729258640460,3.81891,2618.6,2618.1,4.60798]
[1729258640661,3.81933,2618.3,2618.1,0.7885]
[1729258640966,3.81941,2618.2,2618.1,0.7885]
[1729258642072,3.81929,2618.3,2618.1,0.7885]
[1729258642236,3.81913,2618.4,2618.1,0.7885]
[1729258642435,7.63837,2618.4,2618.1,0.7885]
[1729258642743,7.63835,2618.4,2618.1,0.7885]
[1729258642947,7.63834,2618.4,2618.1,0.7885]
[1729258643563,3.81891,2618.6,2618.1,4.60799]
[1729258643765,3.81837,2619.0,2618.5,3.42395114]
[1729258643968,3.81837,2619.0,2618.6,0.7605]
[1729258643969,3.81835,2619.0,2618.6,0.7605]
[1729258644180,3.8186,2618.8,2618.6,0.7605]
[1729258644591,3.81868,2618.7,2618.6,0.7605]
[1729258644757,3.42395114,2619.0,2618.4,0.7605]
[1729258644758,3.81898,2618.5,2618.4,0.7605]
[1729258644948,3.81941,2618.2,2618.1,0.7605]
[1729258645143,3.81956,2618.1,2618.0,0.05730702]
[1729258645886,3.82003,2617.8,2617.4,0.7873]
[1729258646261,3.82043,2617.5,2617.4,0.7873]
[1729258647075,3.82043,2617.5,2617.1,0.7797]
[1729258647276,3.82059,2617.4,2617.1,0.7797]
[1729258647584,3.82081,2617.3,2617.1,0.7797]
[1729258648007,3.82059,2617.4,2617.1,0.7797]
[1729258648164,3.82059,2617.4,2616.8,0.83703223]
[1729258648165,3.82124,2617.0,2616.8,0.83703223]
[1729258648347,3.82124,2617.0,2616.8,0.05733223]
[1729258648348,3.82131,2616.9,2616.8,0.05733223]
[1729258650490,3.82131,2616.9,2616.5,0.7797]
[1729258650491,3.82162,2616.7,2616.5,0.7797]
[1729258650648,3.82175,2616.6,2616.1,0.8263]
[1729258650994,3.82175,2616.6,2616.2,0.84713]
[1729258651195,3.82175,2616.6,2616.2,4.66945]
[1729258651492,3.82142,2616.9,2616.2,8.16984006]
[1729258651711,3.82142,2616.9,2616.2,8.09340114]
[1729258651865,3.82142,2616.9,2616.3,5.54046011]
[1729258652066,3.0,2617.2,2616.3,5.54046011]
[1729258652299,3.82119,2617.0,2616.3,5.54046011]
[1729258652607,3.82098,2617.2,2616.6,4.22165114]
[1729258652773,7.35,2617.4,2617.1,0.7977]
[1729258652979,3.82044,2617.5,2617.1,0.7977]
[1729258653192,0.8062,2617.9,2617.1,4.61864]
[1729258653394,3.82036,2617.6,2617.1,0.7977]
[1729258654401,3.82051,2617.5,2617.1,0.7977]
[1729258654564,3.82061,2617.4,2617.1,0.7977]
[1729258655706,3.82044,2617.5,2617.1,0.7977]
[1729258656713,3.82057,2617.5,2617.1,0.7977]
[1729258656875,3.8206,2617.4,2617.1,0.7977]
[1729258661419,3.82045,2617.5,2617.1,4.6187]
[1729258662496,3.82045,2617.5,2617.1,0.7977]
[1729258662709,7.64101,2617.5,2617.1,0.7977]
[1729258663112,3.82045,2617.5,2617.1,0.7977]
[1729258663518,7.64099,2617.5,2617.1,0.7977]
[1729258663692,3.8206,2617.4,2617.1,0.7977]
[1729258663888,0.764105,2617.4,2616.8,0.7562]
[1729258664094,3.82048,2617.5,2617.0,3.82107]
[1729258664317,3.8206,2617.4,2617.0,3.82107]
[1729258664519,3.82037,2617.6,2617.1,4.57714]
[1729258664685,3.8201,2617.8,2617.3,3.82067]
[1729258664686,7.64018,2617.8,2617.3,3.82067]
[1729258664891,3.82005,2617.8,2617.3,3.82067]
[1729258665114,3.82019,2617.7,2617.2,4.278494]
[1729258665299,3.82005,2617.8,2617.2,4.278494]
[1729258665502,7.35,2618.1,2617.6,3.42395114]
[1729258665792,3.81921,2618.4,2617.9,0.8116]
[1729258666002,3.81921,2618.4,2617.9,4.63144]
[1729258666337,3.81893,2618.6,2617.9,4.70783159]
[1729258666541,3.81893,2618.6,2618.1,3.81946]
[1729258666834,3.81893,2618.6,2618.1,4.57327]
[1729258667008,3.81922,2618.4,2618.1,0.7538]
[1729258667592,3.81905,2618.5,2618.1,0.7538]
[1729258667789,7.63814,2618.5,2618.1,0.7538]
[1729258668025,3.81905,2618.5,2618.1,0.7538]
[1729258668234,7.63814,2618.5,2618.1,0.7538]
[1729258668433,3.8192,2618.4,2618.1,0.7538]
[1729258668929,3.8194,2618.3,2618.1,0.7538]
[1729258669130,4.58326,2618.3,2618.1,0.7538]
[1729258669435,3.81941,2618.2,2618.1,0.7538]
[1729258669940,3.81941,2618.2,2617.9,0.832]
[1729258670727,3.81941,2618.3,2617.9,0.832]
[1729258671039,3.81927,2618.3,2617.9,0.832]
[1729258671631,3.81893,2618.6,2618.0,3.81965]
[1729258671807,3.819,2618.5,2618.0,3.81963]
[1729258672412,3.81914,2618.4,2618.0,3.81963]
[1729258673203,3.81934,2618.3,2617.9,0.832]
[1729258674034,3.81915,2618.4,2617.9,4.6518]
[1729258674218,3.81,2618.9,2618.0,3.8197]
[1729258674436,3.81899,2618.5,2618.0,3.8196]
[1729258675041,7.63807,2618.5,2618.0,3.8196]
[1729258675746,7.6284,2618.9,2617.9,0.832]
[1729258675747,3.81914,2618.4,2617.9,0.832]
[1729258675902,3.81928,2618.3,2617.9,4.65174]
[1729258676241,3.81928,2618.3,2617.9,0.832]
[1729258677451,3.81942,2618.2,2617.9,0.832]
[1729258677648,3.81965,2618.1,2617.9,0.832]
[1729258678250,7.63894,2618.2,2617.9,0.832]
[1729258678409,3.81957,2618.1,2617.9,0.832]
[1729258679516,7.63921,2618.1,2617.9,0.832]
[1729258679734,3.81957,2618.1,2617.9,0.832]
[1729258680952,3.81914,2618.4,2617.9,4.65177]
[1729258681254,3.8192,2618.4,2617.9,4.65182]
[1729258681614,3.81898,2618.5,2618.0,3.81959]
[1729258681816,4.64069,2618.7,2618.0,3.81959]
[1729258682040,3.81907,2618.5,2618.0,3.81959]
[1729258682360,3.81907,2618.5,2618.0,3.8196]
[1729258682729,3.8192,2618.4,2618.0,3.8196]
[1729258683376,3.81899,2618.5,2617.9,0.832]
[1729258683668,3.81899,2618.5,2618.0,3.81964]
[1729258684015,3.81913,2618.4,2618.0,3.81964]
[1729258684215,3.81928,2618.3,2617.9,4.65179]
[1729258684419,3.81919,2618.4,2617.9,4.65179]
[1729258684819,3.81919,2618.4,2617.9,0.832]
[1729258684820,3.81933,2618.3,2617.9,0.832]
[1729258685257,3.81963,2618.1,2617.9,0.832]
[1729258685858,0.763815,2618.4,2617.7,0.8073]
[1729258685859,3.8197,2618.0,2617.7,0.8073]
[1729258686155,3.8195,2618.2,2617.8,3.81998]
[1729258687124,7.63906,2618.2,2617.7,4.62742]
[1729258687335,3.81956,2618.1,2617.7,4.62742]
[1729258687883,7.63925,2618.1,2617.7,0.8073]
[1729258688052,0.7959,2618.3,2617.5,0.831]
[1729258688053,3.82,2617.8,2617.5,0.831]
[1729258688661,3.82016,2617.7,2617.5,0.831]
[1729258688868,3.82001,2617.8,2617.5,0.831]
[1729258689171,7.64014,2617.8,2617.5,0.831]
[1729258689532,3.82001,2617.8,2617.5,0.831]
[1729258689731,0.8384308,2617.8,2617.5,0.831]
[1729258689936,3.82043,2617.5,2617.4,0.05732026]
[1729258691133,3.82031,2617.6,2617.4,0.05732026]
[1729258691569,3.82014,2617.7,2617.4,0.05732026]
[1729258692176,3.81957,2618.1,2617.6,3.82021]
[1729258692476,0.805,2618.2,2617.7,3.82005]
[1729258692477,3.81944,2618.2,2617.7,3.82005]
[1729258692632,8.155,2618.5,2617.7,3.82005]
[1729258692633,3.81912,2618.4,2617.7,3.82005]
[1729258692842,1.197412,2618.3,2617.6,3.82022]
[1729258693034,7.63929,2618.1,2617.6,3.82028]
[1729258693237,3.81962,2618.1,2617.6,3.82028]
[1729258693933,3.81951,2618.2,2617.7,3.82002]
[1729258694139,3.0,2618.4,2618.0,4.61559]
[1729258694476,3.81916,2618.4,2618.0,0.7959]
[1729258694647,3.81907,2618.5,2618.0,0.7959]
[1729258694851,3.81933,2618.3,2618.0,0.7959]
[1729258696040,4.284087,2618.5,2618.0,0.7959]
[1729258696240,3.81889,2618.6,2618.0,4.61551]
[1729258696475,3.81907,2618.5,2618.0,4.61551]
[1729258696680,0.8309,2618.7,2618.0,0.7959]
[1729258696885,3.42395114,2618.6,2618.0,0.7959]
[1729258697186,3.81898,2618.5,2618.0,0.7959]
[1729258697347,3.81931,2618.3,2618.0,0.7959]
[1729258697552,3.81914,2618.4,2618.0,0.7959]
[1729258697751,7.63839,2618.4,2618.0,0.7959]
[1729258698064,3.81914,2618.4,2618.0,0.7959]
[1729258698448,3.8193,2618.3,2618.0,0.7959]
[1729258699173,3.81914,2618.4,2618.0,0.7959]
[1729258699376,3.8189,2618.6,2618.1,3.81948]
[1729258699545,3.8189,2618.6,2618.0,5.077143]
[1729258699546,3.81905,2618.5,2618.0,0.7959]
[1729258699763,3.81905,2618.5,2618.1,3.81955]
[1729258699944,3.81905,2618.5,2618.0,4.61559]
[1729258700152,3.81894,2618.6,2618.1,3.81956]
[1729258700351,3.81908,2618.5,2618.1,3.81956]
[1729258700754,3.81908,2618.5,2618.1,3.8195]
[1729258700952,3.8187,2618.7,2618.1,3.8195]
[1729258701164,3.81884,2618.6,2618.1,3.81947]
[1729258701461,3.81884,2618.6,2618.1,0.461537]
[1729258701650,3.81884,2618.6,2618.0,4.61558]
[1729258701651,3.81904,2618.5,2618.0,4.61558]
[1729258701991,7.6381,2618.5,2618.0,4.61558]
[1729258702160,3.81904,2618.5,2618.0,8.4352]
[1729258702364,3.81904,2618.5,2618.1,3.81955]
[1729258702947,3.81904,2618.5,2618.1,4.281095]
[1729258703384,3.8189,2618.6,2618.1,4.281025]
[1729258703596,0.7566,2619.1,2618.4,3.81906]
[1729258703765,3.81835,2619.0,2618.5,4.6166]
[1729258703950,3.81871,2618.7,2618.5,0.7977]
[1729258704599,4.57546,2618.6,2618.1,3.81948]
[1729258704961,4.57546,2618.6,2618.0,3.81962]
[1729258704962,6.81836,2619.0,2618.4,3.81912]
[1729258705323,0.7566,2619.2,2618.3,4.22165114]
[1729258705324,3.81863,2618.8,2618.3,4.61684]
[1729258705604,3.81875,2618.7,2618.3,0.7977]
[1729258705761,7.63731,2618.8,2618.3,4.6169]
[1729258705962,3.81863,2618.8,2618.3,5.460542]
[1729258706266,7.63722,2618.8,2618.3,5.460542]
[1729258706471,7.63721,2618.8,2618.3,5.460542]
[1729258706775,3.8181,2619.1,2618.3,1.641342]
[1729258706957,7.637,2618.9,2618.4,3.81904]
[1729258707157,3.81866,2618.8,2618.4,0.93560794]
[1729258707384,3.81848,2618.9,2618.4,4.75466794]
[1729258707588,3.81848,2618.9,2618.5,3.81893]
[1729258707761,3.8182,2619.1,2618.5,3.81893]
[1729258707961,4.18055114,2619.2,2618.4,4.75466794]
[1729258708172,3.81841,2618.9,2618.5,3.81898]
[1729258708375,3.8181,2619.1,2618.6,4.59066]
[1729258708574,3.81799,2619.2,2618.7,3.81868]
[1729258709103,3.81799,2619.2,2618.7,3.81859]
[1729258709309,3.81799,2619.2,2618.7,4.277639]
[1729258709663,7.63604,2619.2,2618.7,4.277619]
[1729258709866,3.81799,2619.2,2618.8,3.81851]
[1729258710067,3.81799,2619.2,2618.6,4.59068]
[1729258710307,3.81823,2619.1,2618.6,4.59066]
[1729258710510,3.81823,2619.1,2618.6,5.43735651]
[1729258710717,3.43473473,2619.7,2618.6,5.43735651]
[1729258710718,3.83641069,2619.7,2619.2,0.7981]
[1729258710871,3.81744,2619.6,2619.2,0.7981]
[1729258711074,3.81767,2619.4,2619.2,0.7981]
[1729258711267,3.81744,2619.6,2619.2,0.7981]
[1729258711467,3.8176,2619.5,2619.2,0.7981]
[1729258712279,3.81723,2619.7,2619.2,0.7981]
[1729258712506,3.81723,2619.7,2619.2,4.61597]
[1729258712713,3.81723,2619.7,2619.3,3.81781]
[1729258712870,4.61692,2619.9,2619.3,3.81781]
[1729258712871,3.81709,2619.8,2619.3,3.81781]
[1729258713483,3.81708,2619.8,2619.3,3.81781]
[1729258713817,3.81702,2619.9,2619.4,3.81766]
[1729258714017,7.63404,2619.9,2619.4,3.81766]
[1729258714225,4.656494,2619.9,2619.3,3.81773]
[1729258714403,3.81715,2619.8,2619.3,7.63544]
[1729258714718,3.81695,2619.9,2619.5,3.81741]
[1729258714876,4.57741,2620.1,2619.5,3.81741]
[1729258715076,3.81708,2619.8,2619.2,0.7981]
[1729258715272,0.72410311,2619.8,2619.3,3.81773]
[1729258715476,3.81739,2619.6,2619.2,0.7981]
[1729258716011,3.81739,2619.6,2619.2,4.61603]
[1729258716380,3.81752,2619.5,2619.2,0.7981]
[1729258716576,4.14805425,2619.8,2618.9,0.05728657]
[1729258716577,5.32486311,2619.8,2618.9,0.83608657]
[1729258716778,3.81733,2619.7,2619.1,3.81799]
[1729258717118,3.81738,2619.6,2619.2,3.8179]
[1729258717912,3.8173,2619.7,2619.3,0.7962]
[1729258718270,0.8191,2620.0,2619.4,3.81763]
[1729258718474,0.8191,2620.2,2619.5,3.81742]
[1729258718724,3.81686,2620.0,2619.5,7.63486]
[1729258719014,3.81686,2620.0,2619.5,3.81742]
[1729258719245,3.81686,2620.0,2619.5,7.63486]
[1729258719418,3.81679,2620.1,2619.5,7.63486]
[1729258719419,3.81665,2620.1,2619.6,3.81737]
[1729258719615,0.8191,2620.2,2619.6,3.81737]
[1729258719616,0.8191,2620.2,2619.6,4.61347]
[1729258719848,3.81671,2620.1,2619.6,4.61347]
[1729258720143,4.63571,2620.2,2619.6,4.61347]
[1729258720144,3.8168,2620.0,2619.6,4.61347]
[1729258720353,4.63571,2620.2,2619.6,4.61347]
[1729258720354,3.81665,2620.1,2619.6,1.7236173]
[1729258720653,4.63571,2620.2,2619.7,3.81716]
[1729258720808,3.81664,2620.1,2619.7,3.81716]
[1729258721148,3.81658,2620.2,2619.7,3.81716]
[1729258721309,3.81637,2620.3,2619.8,3.81699]
[1729258721514,3.81651,2620.2,2619.8,3.81699]
[1729258721759,3.81671,2620.1,2619.7,3.81714]
[1729258722043,3.81656,2620.2,2619.7,3.81713]
[1729258722404,3.81612,2620.5,2620.0,0.7555]
[1729258722610,3.81612,2620.5,2620.0,4.57219]
[1729258722810,4.497732,2620.5,2620.0,4.57219]
[1729258723309,3.81646,2620.3,2620.0,0.7555]
[1729258723618,3.81664,2620.1,2619.7,0.7936]
[1729258723855,3.81652,2620.2,2619.7,4.6108]
[1729258724153,3.81671,2620.1,2619.7,0.7936]
[1729258724653,3.81671,2620.1,2619.7,4.61081]
[1729258724850,3.81661,2620.2,2619.7,0.7936]
[1729258725350,3.81661,2620.2,2619.8,3.81707]
[1729258726108,3.81661,2620.2,2619.7,0.7936]
[1729258726308,3.81661,2620.2,2619.7,4.6108]
[1729258726309,3.81666,2620.1,2619.7,4.6108]
[1729258726504,3.81659,2620.2,2619.8,3.81703]
[1729258726914,3.81637,2620.3,2619.8,3.81708]
[1729258727152,3.81637,2620.3,2619.8,7.63408]
[1729258727333,3.81637,2620.3,2619.8,3.817]
[1729258727542,4.69000931,2620.4,2619.9,3.81687]
[1729258727738,3.81643,2620.3,2619.8,3.81694]
[1729258728439,3.81643,2620.3,2619.9,3.8169]
[1729258728758,0.8279,2620.6,2619.9,3.8169]
[1729258728759,3.81592,2620.6,2620.1,0.8317]
[1729258728922,0.7802,2620.9,2620.2,3.81639]
[1729258728923,3.81586,2620.7,2620.2,3.81639]
[1729258729452,3.81604,2620.6,2620.1,4.64832]
[1729258729665,3.81586,2620.7,2620.1,0.8317]
[1729258729666,3.81608,2620.5,2620.1,0.8317]
[1729258730263,3.81624,2620.4,2620.1,0.8317]
[1729258730420,3.81608,2620.5,2620.1,0.8317]
[1729258730620,7.63223,2620.5,2620.1,0.8317]
[1729258731132,3.81629,2620.4,2620.1,0.8317]
[1729258731956,3.81594,2620.6,2620.1,0.8317]
[1729258732256,3.8157,2620.8,2620.3,3.81627]
[1729258732460,3.81552,2620.9,2620.5,0.7544]
[1729258732685,3.81562,2620.8,2620.5,0.7544]
[1729258732972,3.81577,2620.7,2620.5,0.7544]
[1729258733167,3.81582,2620.7,2620.5,0.7544]
[1729258733516,7.63167,2620.7,2620.5,0.7544]
[1729258733919,3.81548,2620.9,2620.3,0.7989]
[1729258734361,3.81614,2620.5,2620.3,0.7989]
[1729258735583,3.81621,2620.4,2620.3,0.7989]
[1729258736649,3.81607,2620.5,2620.3,0.7989]
[1729258737852,3.81593,2620.6,2620.3,0.7989]
[1729258738103,3.81571,2620.8,2620.4,3.8162]
[1729258738378,3.81564,2620.8,2620.3,5.46407793]
[1729258738682,3.0,2621.1,2620.4,3.81608]
[1729258738683,3.81554,2620.9,2620.4,3.81608]
[1729258738895,3.81573,2620.8,2620.3,4.61523]
[1729258739097,0.681554,2620.9,2620.3,0.7989]
[1729258739389,3.81591,2620.7,2620.3,0.7989]
[1729258739682,3.81562,2620.8,2620.3,4.61516]
[1729258739868,3.81585,2620.7,2620.3,0.7989]
[1729258740253,3.81546,2621.0,2620.3,4.61517]
[1729258740585,3.81572,2620.8,2620.3,4.61517]
[1729258740789,1.10011111,2621.0,2620.3,4.61517]
[1729258740961,7.63194,2620.6,2620.3,0.7989]
[1729258741156,3.81592,2620.6,2620.3,0.7989]
[1729258741354,3.81568,2620.8,2620.4,3.81617]
[1729258741677,3.81563,2620.8,2620.5,0.8192]
[1729258741993,7.63164,2620.7,2620.5,0.8192]
[1729258742176,7.63164,2620.7,2620.2,4.63122]
[1729258742378,3.81578,2620.7,2620.2,4.63122]
[1729258742545,3.81578,2620.7,2620.2,0.8148]
[1729258742743,3.81578,2620.7,2620.2,4.63121]
[1729258743053,3.81578,2620.7,2620.2,4.63128]
[1729258743260,3.81578,2620.7,2620.2,8.44771]
[1729258743441,3.81525,2621.1,2620.3,0.7586]
[1729258743650,3.8154,2621.0,2620.6,0.7586]
[1729258743845,3.81477,2621.4,2620.8,0.7586]
[1729258744057,3.81505,2621.2,2620.8,0.7586]
[1729258744369,3.81505,2621.2,2620.8,4.54662]
[1729258745793,3.0,2621.7,2620.8,0.836252]
[1729258745975,7.62966,2621.4,2620.9,3.81541]
[1729258746289,3.81492,2621.3,2620.8,3.81558]
[1729258746646,3.81492,2621.3,2620.8,3.81555]
[1729258746845,3.81483,2621.4,2620.9,3.81545]
[1729258747098,3.81483,2621.4,2620.7,3.81565]
[1729258747273,3.81457,2621.6,2620.9,3.8154]
[1729258747446,0.804,2621.8,2620.9,3.8154]
[1729258747447,3.804,2621.8,2621.0,0.7541]
[1729258747649,3.81483,2621.4,2621.0,0.7541]
[1729258748185,3.81492,2621.3,2621.0,0.7541]
[1729258748587,3.81477,2621.4,2621.0,0.7541]
[1729258748793,3.81477,2621.4,2621.0,4.56943]
[1729258748960,3.81477,2621.4,2621.0,0.7541]
[1729258749159,7.62963,2621.4,2621.0,0.7541]
[1729258749476,3.81491,2621.3,2621.0,0.7541]
[1729258749674,7.62966,2621.4,2621.0,0.7541]
[1729258749848,3.81477,2621.4,2621.0,0.7541]
[1729258750305,3.81529,2621.1,2620.8,0.8143]
[1729258750447,3.81518,2621.2,2620.8,4.62991]
[1729258750647,3.81497,2621.3,2620.8,4.62991]
[1729258750946,0.804,2621.8,2621.1,3.81515]
[1729258751182,7.94718647,2622.1,2621.1,3.81515]
[1729258751183,3.81441,2621.7,2621.2,0.86640024]
[1729258751491,3.81441,2621.7,2621.2,4.60512]
[1729258751648,3.81463,2621.5,2621.2,0.7901]
[1729258752053,7.62934,2621.5,2621.2,0.7901]
[1729258752255,3.81463,2621.5,2621.2,0.7901]
[1729258752461,7.62935,2621.5,2621.2,0.7901]
[1729258752666,7.62931,2621.5,2621.2,0.7901]
[1729258752885,3.81463,2621.5,2621.2,0.7901]
[1729258753401,3.8151,2621.2,2621.0,0.8309]
[1729258754823,3.81519,2621.1,2621.0,0.8309]
[1729258755554,3.81519,2621.1,2620.6,0.7513]
[1729258755797,3.81507,2621.2,2620.7,7.70768579]
[1729258755954,3.81505,2621.2,2620.9,0.7513]
[1729258756155,3.8149,2621.3,2620.9,0.7513]
[1729258756468,3.8149,2621.3,2620.9,4.56677]
[1729258756897,3.81476,2621.4,2621.0,3.81533]
[1729258757087,3.81471,2621.5,2621.1,0.806]
[1729258757287,3.81471,2621.5,2621.1,4.6211]
[1729258757482,3.81471,2621.5,2621.1,1.27573965]
[1729258757725,3.81471,2621.5,2621.1,5.09084965]
[1729258758132,7.62942,2621.5,2621.1,5.09084965]
[1729258758431,3.81438,2621.7,2621.2,3.81498]
[1729258758598,3.81438,2621.7,2621.3,0.07629444]
[1729258758928,7.62829,2621.9,2621.4,0.752]
[1729258759150,3.81426,2621.8,2621.4,0.752]
[1729258759427,3.81432,2621.7,2621.4,0.752]
[1729258759652,3.81412,2621.9,2621.4,0.752]
[1729258759948,3.81389,2622.0,2621.4,0.58760579]
[1729258760108,3.81409,2621.9,2621.5,0.8171]
[1729258760293,3.8138,2622.1,2621.6,0.0762854]
[1729258760495,3.8138,2622.1,2621.7,4.63139]
[1729258760931,3.8138,2622.1,2621.7,0.8171]
[1729258761158,3.81384,2622.1,2621.7,0.8171]
[1729258761941,3.81417,2621.9,2621.7,0.8171]
[1729258762231,0.0799035,2622.2,2621.5,4.60868]
[1729258762232,3.81383,2622.1,2621.5,4.60868]
[1729258762403,3.81405,2621.9,2621.5,0.7941]
[1729258762839,3.81417,2621.8,2621.5,0.7941]
[1729258763538,7.62844,2621.8,2621.5,0.7941]
[1729258763705,3.81417,2621.8,2621.5,0.7941]
[1729258763909,7.62845,2621.8,2621.5,0.7941]
[1729258764126,3.81446,2621.6,2621.5,0.7941]
[1729258764491,3.8144,2621.7,2621.5,0.7941]
[1729258764736,3.81446,2621.6,2621.5,0.7941]
[1729258766292,3.81428,2621.8,2621.5,0.7941]
[1729258766549,7.62848,2621.8,2621.5,0.7941]
[1729258766754,3.81417,2621.8,2621.5,0.7941]
[1729258768625,3.81388,2622.0,2621.5,0.7941]
[1729258768826,3.81446,2621.6,2621.5,0.7941]
[1729258769126,3.81427,2621.8,2621.5,0.7941]
[1729258769645,3.81438,2621.7,2621.5,0.7941]
[1729258770018,3.81398,2622.0,2621.5,4.60861]
[1729258770359,3.81411,2621.9,2621.5,0.7941]
[1729258770855,3.81411,2621.9,2621.5,4.6087]
[1729258771064,3.81411,2621.9,2621.5,0.7941]
[1729258771617,3.81411,2621.9,2621.5,4.6087]
[1729258772020,3.81398,2622.0,2621.6,3.81442]
[1729258772336,3.81398,2622.0,2621.5,4.60868]
[1729258772866,3.81383,2622.1,2621.6,3.89073573]
[1729258773160,3.81389,2622.0,2621.6,3.89068573]
[1729258773366,3.81389,2622.0,2621.6,0.07628573]
[1729258773569,3.81389,2622.0,2621.6,3.89073573]
[1729258773863,3.8935835,2622.2,2621.7,0.7642]
[1729258773864,0.0799035,2622.2,2621.7,0.7642]
[1729258774068,0.0799035,2622.2,2622.1,4.64413]
[1729258775634,0.0799035,2622.2,2622.1,4.72039312]
[1729258776665,0.0799035,2622.2,2622.1,4.64413]
[1729258776832,0.0799035,2622.2,2622.1,0.8304]
[1729258777020,0.0799035,2622.2,2621.9,0.7616]
[1729258777419,0.0799035,2622.2,2621.9,4.57555]
[1729258778347,0.0799035,2622.2,2622.1,3.81373]
[1729258778563,0.0799035,2622.2,2622.1,4.58223]
[1729258778771,0.0799035,2622.2,2622.1,2.03439602]
[1729258778964,0.0799035,2622.2,2622.1,0.7685]
[1729258779168,0.0799035,2622.2,2622.1,4.58223]
[1729258779377,0.0799035,2622.2,2622.1,0.7685]
[1729258779574,0.0799035,2622.2,2622.1,4.58223]
[1729258779841,0.0799035,2622.2,2622.1,0.7685]
[1729258780244,0.0799035,2622.2,2622.1,1.608138]
[1729258780977,0.0799035,2622.2,2622.1,5.421868]
[1729258781134,0.0799035,2622.2,2622.1,1.608138]
[1729258781336,0.0799035,2622.2,2622.1,0.7685]
[1729258782072,0.0799035,2622.2,2621.8,3.87139395]
[1729258782073,0.0799035,2622.2,2621.9,0.752]
[1729258783262,0.0799035,2622.2,2621.9,4.56601]
[1729258783876,3.81377,2622.1,2621.9,0.752]
[1729258784180,3.81377,2622.1,2621.8,0.05722395]
[1729258784181,3.81402,2621.9,2621.8,0.05722395]
[1729258785675,3.8139,2622.0,2621.8,0.05722395]
[1729258786181,3.81402,2621.9,2621.8,0.05722395]
[1729258786964,0.8164,2621.6,2620.3,1.1956525]
[1729258787199,3.0,2621.9,2620.4,4.59966]
[1729258787200,3.8149,2621.3,2620.4,4.59966]
[1729258787410,7.63117,2620.9,2620.4,4.59966]
[1729258787566,3.81557,2620.9,2620.4,4.59966]
[1729258787770,3.81557,2620.9,2620.4,4.59962]
[1729258787995,3.816,2620.6,2620.1,4.60006]
[1729258788270,3.81606,2620.5,2620.1,0.7835]
[1729258788606,3.81592,2620.6,2620.1,4.67638424]
[1729258789168,3.81607,2620.5,2620.1,4.67638424]
[1729258789409,3.81607,2620.5,2620.1,0.85982424]
[1729258789714,3.81607,2620.5,2620.1,1.25116642]
[1729258790099,3.81618,2620.5,2620.1,1.25116642]
[1729258790994,3.81592,2620.6,2620.1,1.32749065]
[1729258791370,3.81608,2620.5,2620.1,1.25116642]
[1729258791571,3.81608,2620.5,2620.1,0.7835]
[1729258791814,3.81606,2620.5,2620.1,0.7835]
[1729258792025,3.81673,2620.1,2619.8,0.83706737]
[1729258792241,3.81693,2619.9,2619.8,0.05726737]
[1729258792518,3.81714,2619.8,2619.3,0.7798]
[1729258792736,3.81687,2620.0,2619.4,0.07581981]
[1729258793024,7.63323,2620.2,2619.6,3.81729]
[1729258793322,3.81676,2620.1,2619.5,4.64639]
[1729258793503,3.81689,2620.0,2619.5,5.88191681]
[1729258793708,7.63353,2620.1,2619.5,4.64634]
[1729258794016,3.81676,2620.1,2619.6,3.81737]
[1729258794171,3.8165,2620.2,2619.7,3.89345646]
[1729258794406,3.81666,2620.1,2619.7,3.81712]